bitfinex-derivatives/quotes_BTCF0:USTF0_20251220
["timestamp","ask_amount","ask_price","bid_price","bid_amount"]
[1766194449066,0.00017023,88161.0,88143.0,0.01152153]
[1766194453274,0.00017023,88161.0,88143.0,0.00017023]
[1766194454970,0.00017023,88161.0,88146.0,0.011351]
[1766194455472,0.00017023,88161.0,88143.0,0.00017023]
[1766194455671,0.00017023,88161.0,88144.0,0.0113512]
[1766194459170,0.00017023,88161.0,88150.0,0.22670273]
[1766194461580,0.01151933,88161.0,88150.0,0.22670273]
[1766194461874,0.00017023,88161.0,88143.0,0.00017023]
[1766194462177,0.0113492,88160.0,88143.0,0.00017023]
[1766194462375,0.22670273,88160.0,88143.0,0.00017023]
[1766194463173,0.0113499,88155.0,88143.0,0.00017023]
[1766194466075,0.0113494,88159.0,88143.0,0.00017023]
[1766194471272,0.22670273,88160.0,88143.0,0.00017023]
[1766194471879,0.23805193,88160.0,88143.0,0.00017023]
[1766194472077,0.22670273,88160.0,88143.0,0.00017023]
[1766194473667,0.22670273,88160.0,88143.0,0.01152153]
[1766194473878,0.00017023,88161.0,88143.0,0.01152153]
[1766194475390,0.00017023,88161.0,88143.0,0.00017023]
[1766194477783,0.0113492,88160.0,88143.0,0.00017023]
[1766194478287,0.00017023,88161.0,88143.0,0.00017023]
[1766194478488,0.01151933,88161.0,88143.0,0.00017023]
[1766194481987,0.00017023,88161.0,88144.0,0.0113512]
[1766194485394,0.22670273,88190.0,88150.0,0.22670273]
[1766194485595,0.0113468,88179.0,88170.0,3e-08]
[1766194485782,0.0113475,88174.0,88149.0,0.0113505]
[1766194485983,0.22670273,88180.0,88150.0,0.22670273]
[1766194486194,0.02694814,88179.0,88150.0,0.22670273]
[1766194486394,0.0113484,88167.0,88156.0,0.00017013]
[1766194488294,0.22670273,88170.0,88156.0,0.00017013]
[1766194488494,0.0113481,88169.0,88156.0,0.00017013]
[1766194493404,0.0113485,88166.0,88156.0,1.3e-07]
[1766194494199,0.22670273,88170.0,88156.0,1.3e-07]
[1766194495307,0.0113481,88169.0,88156.0,1.3e-07]
[1766194501008,0.22670273,88170.0,88156.0,1.3e-07]
[1766194501210,0.23805073,88170.0,88156.0,1.3e-07]
[1766194501705,0.0113487,88164.0,88156.0,1.3e-07]
[1766194501905,0.0113495,88158.0,88156.0,1.3e-07]
[1766194502209,0.22670273,88170.0,88114.0,0.19142329]
[1766194502210,0.22670273,88166.0,88126.0,0.0113535]
[1766194502412,0.011351,88146.0,88130.0,0.22670273]
[1766194502708,0.0113488,88164.0,88120.0,0.22670273]
[1766194502709,0.0113512,88145.0,88120.0,0.22670273]
[1766194502907,0.0113512,88145.0,88121.0,0.0113542]
[1766194503203,0.22670273,88150.0,88124.0,0.00017013]
[1766194503204,0.00017013,88142.0,88124.0,0.00017013]
[1766194503706,0.00017013,88142.0,88127.0,0.0113533]
[1766194504309,0.00017013,88142.0,88130.0,0.22670273]
[1766194505211,0.00017013,88142.0,88131.0,0.0113529]
[1766194506214,3e-08,88142.0,88131.0,0.0113529]
[1766194507103,3e-08,88142.0,88130.0,0.22675781]
[1766194507413,0.0113483,88168.0,88143.0,0.0113513]
[1766194507614,0.22675781,88180.0,88146.0,0.0113509]
[1766194507805,0.02728746,88179.0,88146.0,0.0113509]
[1766194508115,0.02728746,88178.0,88146.0,0.0113509]
[1766194508415,0.00012981,88171.0,88153.0,0.00017013]
[1766194508614,0.011348,88170.0,88153.0,0.00017013]
[1766194509114,0.0113484,88167.0,88153.0,0.00017013]
[1766194509414,0.00012981,88171.0,88153.0,0.00017013]
[1766194509415,0.0113488,88163.0,88153.0,0.00017013]
[1766194509713,0.0113488,88163.0,88153.0,1.3e-07]
[1766194510800,0.0113485,88166.0,88153.0,1.3e-07]
[1766194516720,0.0113479,88170.0,88153.0,1.3e-07]
[1766194517316,0.0113484,88167.0,88153.0,1.3e-07]
[1766194523422,0.00012981,88171.0,88153.0,0.01135023]
[1766194529122,0.00012981,88171.0,88153.0,1.3e-07]
[1766194529324,0.0113479,88170.0,88153.0,1.3e-07]
[1766194533144,0.00012981,88171.0,88153.0,1.3e-07]
[1766194540051,0.00012981,88171.0,88154.0,0.0113499]
[1766194541156,0.00012981,88171.0,88153.0,1.3e-07]
[1766194546158,0.0113479,88170.0,88153.0,1.3e-07]
[1766194549862,0.00012981,88171.0,88153.0,1.3e-07]
[1766194551263,0.01147761,88171.0,88153.0,1.3e-07]
[1766194552565,0.00012981,88171.0,88153.0,0.01135013]
[1766194558670,0.00012981,88171.0,88153.0,1.3e-07]
[1766194560456,0.011348,88170.0,88153.0,1.3e-07]
[1766194562772,0.00012981,88171.0,88153.0,1.3e-07]
[1766194564473,0.01147761,88171.0,88153.0,1.3e-07]
[1766194566174,0.22665081,88170.0,88153.0,1.3e-07]
[1766194566476,0.0113484,88167.0,88153.0,1.3e-07]
[1766194566679,0.0113488,88164.0,88153.0,1.3e-07]
[1766194567076,0.0113483,88168.0,88153.0,1.3e-07]
[1766194567872,0.22665081,88170.0,88153.0,1.3e-07]
[1766194569671,0.0113481,88169.0,88153.0,1.3e-07]
[1766194572475,0.00012981,88171.0,88159.0,0.22665081]
[1766194572679,0.22665081,88180.0,88159.0,0.22665081]
[1766194572990,0.02727495,88179.0,88159.0,0.22665081]
[1766194573166,0.02727495,88178.0,88156.0,0.0113497]
[1766194573371,0.02727495,88177.0,88156.0,0.0113497]
[1766194573570,0.00017,88175.0,88156.0,0.0113497]
[1766194573771,0.02727495,88174.0,88156.0,0.0113497]
[1766194573971,0.00017,88175.0,88156.0,0.0113497]
[1766194574781,0.02727317,88174.0,88156.0,0.0113497]
[1766194575079,0.00017,88175.0,88156.0,0.0113497]
[1766194575278,0.0272723,88174.0,88156.0,0.0113497]
[1766194575483,0.00017,88175.0,88156.0,0.0113497]
[1766194577383,0.00017,88175.0,88160.0,0.22665081]
[1766194577585,0.00017,88175.0,88161.0,0.011349]
[1766194578385,0.00017,88175.0,88160.0,0.22665081]
[1766194579382,0.00017,88175.0,88160.0,0.2266206]
[1766194579581,0.00017,88175.0,88160.0,0.2379698]
[1766194579781,0.0113461,88185.0,88160.0,0.2379698]
[1766194579986,0.02722493,88184.0,88160.0,0.2379698]
[1766194580284,0.02722493,88183.0,88160.0,0.2379698]
[1766194580486,0.02722493,88182.0,88160.0,0.2379698]
[1766194580676,0.02722493,88181.0,88160.0,0.2379698]
[1766194580985,0.02722493,88180.0,88160.0,0.2379698]
[1766194581186,0.02722493,88179.0,88160.0,0.2379698]
[1766194581387,0.0113461,88185.0,88163.0,0.0113488]
[1766194581577,0.02722018,88184.0,88163.0,0.0113488]
[1766194581778,0.02722018,88183.0,88170.0,0.2266206]
[1766194581977,0.02722018,88182.0,88170.0,0.2266206]
[1766194582179,0.2266206,88190.0,88163.0,0.0113488]
[1766194582381,0.02721408,88189.0,88160.0,0.2266206]
[1766194582579,0.2266206,88190.0,88160.0,0.2266206]
[1766194582580,0.0113465,88181.0,88160.0,0.2266206]
[1766194583180,0.0113469,88178.0,88160.0,0.2266206]
[1766194585185,0.0113473,88175.0,88160.0,0.2266206]
[1766194585894,0.0113073,88175.0,88160.0,0.2266206]
[1766194588190,0.237966,88190.0,88160.0,0.2266206]
[1766194588485,0.0113445,88197.0,88136.0,0.08146412]
[1766194588486,0.2266206,88170.0,88136.0,0.08146412]
[1766194588690,0.2266206,88170.0,88130.0,0.09056613]
[1766194588691,0.0113488,88163.0,88150.0,0.2266206]
[1766194588882,0.0113488,88163.0,88140.0,0.2266206]
[1766194589083,0.0113488,88163.0,88142.0,0.0113515]
[1766194589280,0.0113484,88167.0,88145.0,0.0113511]
[1766194589677,0.0113484,88167.0,88150.0,0.2266206]
[1766194590193,0.2266206,88170.0,88150.0,0.2266206]
[1766194590391,0.0113481,88169.0,88150.0,0.2266206]
[1766194591886,0.2266206,88170.0,88151.0,0.0113503]
[1766194592289,0.2266206,88170.0,88150.0,0.2266206]
[1766194592483,0.0113478,88171.0,88150.0,0.2266206]
[1766194592685,0.2266206,88170.0,88150.0,0.2266206]
[1766194592998,0.0113478,88171.0,88150.0,0.2266206]
[1766194593386,0.0113478,88171.0,88151.0,0.0113503]
[1766194593590,0.0113482,88168.0,88150.0,0.2266206]
[1766194594494,0.0113476,88173.0,88150.0,0.2266206]
[1766194594994,0.0113476,88173.0,88150.0,0.2379711]
[1766194599395,0.2266206,88170.0,88150.0,0.2379711]
[1766194599893,0.0113484,88167.0,88146.0,0.0113509]
[1766194600088,0.2266206,88170.0,88144.0,0.00017013]
[1766194600294,0.011349,88162.0,88144.0,0.00017013]
[1766194601298,0.0113485,88166.0,88145.0,0.0113511]
[1766194602393,0.2266206,88170.0,88146.0,0.0113509]
[1766194603191,0.0113481,88169.0,88146.0,0.0113509]
[1766194604602,0.0113481,88169.0,88150.0,0.2266206]
[1766194609304,0.0113485,88166.0,88150.0,0.2266206]
[1766194609999,0.2379686,88170.0,88150.0,0.2266206]
[1766194611203,0.011348,88170.0,88147.0,0.0113509]
[1766194611403,0.0113483,88167.0,88150.0,0.2266206]
[1766194613006,0.2266206,88170.0,88144.0,0.00017013]
[1766194613208,0.2266206,88170.0,88150.0,0.2266206]
[1766194614306,0.011349,88162.0,88150.0,0.2266206]
[1766194615001,0.0113493,88159.0,88150.0,0.2266206]
[1766194616613,0.0113488,88164.0,88150.0,0.2266206]
[1766194618403,0.0113483,88168.0,88150.0,0.2266206]
[1766194620507,0.0113454,88190.0,88151.0,0.0113503]
[1766194620699,0.0113471,88177.0,88162.0,0.00017013]
[1766194620904,0.02732227,88176.0,88162.0,0.00017013]
[1766194621217,0.0113471,88177.0,88162.0,0.00017013]
[1766194621514,0.02732254,88176.0,88162.0,0.00017013]
[1766194621701,0.2266206,88180.0,88162.0,0.00017013]
[1766194621903,0.0272828,88179.0,88162.0,0.00017013]
[1766194622104,0.0113468,88179.0,88162.0,0.00017013]
[1766194629820,0.0113472,88176.0,88162.0,0.00017013]
[1766194632325,0.0113476,88173.0,88162.0,0.00017013]
[1766194637024,0.011348,88170.0,88162.0,0.00017013]
[1766194637420,0.011348,88170.0,88162.0,1.3e-07]
[1766194638119,0.0113476,88173.0,88162.0,1.3e-07]
[1766194640124,0.00017013,88176.0,88162.0,1.3e-07]
[1766194640125,0.0113478,88171.0,88162.0,1.3e-07]
[1766194640330,0.00017013,88176.0,88162.0,1.3e-07]
[1766194640624,0.02733962,88175.0,88162.0,1.3e-07]
[1766194640828,0.00017013,88176.0,88162.0,1.3e-07]
[1766194640829,0.02733962,88174.0,88162.0,1.3e-07]
[1766194641024,0.02733962,88173.0,88162.0,1.3e-07]
[1766194641233,0.02733962,88172.0,88162.0,1.3e-07]
[1766194641442,0.011348,88170.0,88162.0,1.3e-07]
[1766194641830,0.0113475,88174.0,88162.0,1.3e-07]
[1766194642036,0.0113477,88172.0,88162.0,1.3e-07]
[1766194654050,0.0113481,88169.0,88162.0,1.3e-07]
[1766194659956,0.0113476,88173.0,88162.0,1.3e-07]
[1766194660174,0.02734066,88172.0,88162.0,1.3e-07]
[1766194660351,0.0113476,88173.0,88162.0,1.3e-07]
[1766194660656,0.02734094,88172.0,88162.0,1.3e-07]
[1766194660857,0.0113476,88173.0,88162.0,1.3e-07]
[1766194661046,0.02734093,88172.0,88162.0,1.3e-07]
[1766194661250,0.0113476,88173.0,88162.0,1.3e-07]
[1766194661446,0.02734128,88172.0,88162.0,1.3e-07]
[1766194661648,0.02734128,88171.0,88162.0,1.3e-07]
[1766194661857,0.0113476,88173.0,88162.0,1.3e-07]
[1766194662058,0.02734127,88172.0,88162.0,1.3e-07]
[1766194662248,0.02734127,88171.0,88162.0,1.3e-07]
[1766194662449,0.0113476,88173.0,88162.0,1.3e-07]
[1766194662649,0.02734167,88172.0,88162.0,1.3e-07]
[1766194662848,0.00017013,88176.0,88162.0,1.3e-07]
[1766194663055,0.02734162,88175.0,88162.0,1.3e-07]
[1766194663358,0.02734162,88174.0,88162.0,1.3e-07]
[1766194663559,0.02734162,88173.0,88162.0,1.3e-07]
[1766194663756,0.00017013,88176.0,88162.0,1.3e-07]
[1766194663946,0.02734208,88175.0,88162.0,1.3e-07]
[1766194664258,0.02734208,88174.0,88162.0,1.3e-07]
[1766194664557,0.02734208,88173.0,88162.0,1.3e-07]
[1766194664859,0.00017013,88176.0,88162.0,1.3e-07]
[1766194665564,0.02734013,88175.0,88162.0,1.3e-07]
[1766194665759,0.00017013,88176.0,88162.0,1.3e-07]
[1766194666065,0.02734012,88175.0,88162.0,1.3e-07]
[1766194666268,0.00017013,88176.0,88162.0,1.3e-07]
[1766194666458,0.02733964,88175.0,88162.0,1.3e-07]
[1766194666656,0.00017013,88176.0,88162.0,1.3e-07]
[1766194666963,0.02733964,88175.0,88162.0,1.3e-07]
[1766194667157,0.00017013,88176.0,88162.0,1.3e-07]
[1766194667360,0.02733904,88175.0,88162.0,1.3e-07]
[1766194667559,0.00017013,88176.0,88162.0,1.3e-07]
[1766194667759,0.02733903,88175.0,88162.0,1.3e-07]
[1766194667965,0.00017013,88176.0,88162.0,1.3e-07]
[1766194668180,0.02743188,88175.0,88162.0,1.3e-07]
[1766194668365,0.00017013,88176.0,88162.0,1.3e-07]
[1766194668568,0.02743126,88175.0,88162.0,1.3e-07]
[1766194668770,0.00017013,88176.0,88162.0,1.3e-07]
[1766194668956,0.02743126,88175.0,88162.0,1.3e-07]
[1766194669157,0.00017013,88176.0,88162.0,1.3e-07]
[1766194669359,0.02743072,88175.0,88162.0,1.3e-07]
[1766194669663,0.01151733,88176.0,88162.0,1.3e-07]
[1766194669857,0.02743105,88175.0,88162.0,1.3e-07]
[1766194671165,0.0113478,88171.0,88162.0,1.3e-07]
[1766194673858,0.0113473,88175.0,88162.0,1.3e-07]
[1766194674063,0.0113475,88173.0,88162.0,1.3e-07]
[1766194674870,0.02743083,88172.0,88162.0,1.3e-07]
[1766194675071,0.0113475,88173.0,88162.0,1.3e-07]
[1766194675372,0.02743083,88172.0,88162.0,1.3e-07]
[1766194675570,0.0113475,88173.0,88162.0,1.3e-07]
[1766194675771,0.02743085,88172.0,88162.0,1.3e-07]
[1766194675958,0.0113475,88173.0,88162.0,1.3e-07]
[1766194676158,0.0113478,88171.0,88162.0,1.3e-07]
[1766194677076,0.0113483,88168.0,88162.0,1.3e-07]
[1766194677568,0.0113487,88165.0,88162.0,1.3e-07]
[1766194678176,0.0113482,88169.0,88162.0,1.3e-07]
[1766194681274,0.0113475,88174.0,88162.0,1.3e-07]
[1766194681469,0.02743139,88173.0,88162.0,1.3e-07]
[1766194681667,0.03877909,88172.0,88162.0,1.3e-07]
[1766194681872,0.0113481,88169.0,88162.0,1.3e-07]
[1766194682473,0.0113487,88164.0,88162.0,1.3e-07]
[1766194682864,0.22668112,88172.0,88132.0,0.09281692]
[1766194682865,0.0113497,88157.0,88132.0,0.09281692]
[1766194683069,0.0113497,88157.0,88134.0,0.0113525]
[1766194683277,0.0113491,88161.0,88134.0,0.0113525]
[1766194683471,0.01012608,88161.0,88134.0,0.0113525]
[1766194683874,0.00017013,88156.0,88139.0,0.00017013]
[1766194687478,0.00017013,88156.0,88140.0,0.2267206]
[1766194688076,0.00017013,88156.0,88141.0,0.0113516]
[1766194691781,0.00017013,88156.0,88140.0,0.2267206]
[1766194693283,0.00017013,88156.0,88144.0,0.0113512]
[1766194697182,0.00017013,88156.0,88147.0,0.0113508]
[1766194699177,0.00017013,88156.0,88143.0,0.0113513]
[1766194700781,0.0113486,88165.0,88143.0,0.0113513]
[1766194702179,0.2267206,88170.0,88140.0,0.2267206]
[1766194702180,0.0113494,88159.0,88140.0,0.2267206]
[1766194702381,0.2267206,88160.0,88141.0,0.0113515]
[1766194703185,0.0113492,88161.0,88141.0,0.0113515]
[1766194703481,0.2267206,88170.0,88140.0,0.2267206]
[1766194703482,0.0113482,88168.0,88140.0,0.2267206]
[1766194703683,0.02739283,88167.0,88150.0,0.2267206]
[1766194703885,0.2267206,88190.0,88159.0,0.0113492]
[1766194704080,0.0113468,88179.0,88166.0,0.00017013]
[1766194704284,0.011347,88177.0,88166.0,0.00017013]
[1766194704475,0.2267206,88180.0,88150.0,0.238071]
[1766194704682,0.2267206,88170.0,88150.0,0.2267206]
[1766194704878,0.0113485,88166.0,88150.0,0.2267206]
[1766194706084,0.0113485,88166.0,88149.0,0.00017013]
[1766194706292,0.00017013,88167.0,88149.0,0.00017013]
[1766194707195,0.01151853,88167.0,88150.0,0.2267206]
[1766194707998,0.01151853,88167.0,88149.0,0.00017013]
[1766194707999,0.0113496,88158.0,88149.0,0.00017013]
[1766194708187,0.0113496,88158.0,88149.0,1.3e-07]
[1766194709187,0.2267206,88160.0,88149.0,1.3e-07]
[1766194709388,0.0113502,88153.0,88149.0,1.3e-07]
[1766194720999,0.22674049,88160.0,88149.0,1.3e-07]
[1766194722206,0.0113498,88156.0,88149.0,1.3e-07]
[1766194725506,0.0113494,88159.0,88149.0,1.3e-07]
[1766194727101,0.22674049,88160.0,88149.0,1.3e-07]
[1766194729006,0.23808979,88160.0,88149.0,1.3e-07]
[1766194734405,0.02798807,88159.0,88149.0,1.3e-07]
[1766194734607,0.00017013,88167.0,88149.0,1.3e-07]
[1766194734608,0.02798807,88158.0,88149.0,1.3e-07]
[1766194734805,0.0113499,88155.0,88149.0,1.3e-07]
[1766194735206,0.0113503,88152.0,88149.0,1.3e-07]
[1766194738812,0.0113505,88150.0,88149.0,1.3e-07]
[1766194741918,0.01135,88154.0,88149.0,1.3e-07]
[1766194742114,0.0113502,88152.0,88149.0,1.3e-07]
[1766194742421,0.02802561,88151.0,88149.0,1.3e-07]
[1766194742623,0.0113502,88152.0,88149.0,1.3e-07]
[1766194742824,0.02802494,88151.0,88149.0,1.3e-07]
[1766194743021,0.0113502,88152.0,88149.0,1.3e-07]
[1766194743232,0.0113505,88150.0,88149.0,1.3e-07]
[1766194745129,0.22674049,88160.0,88149.0,1.3e-07]
[1766194745334,0.02802347,88159.0,88149.0,1.3e-07]
[1766194745534,0.02802347,88158.0,88149.0,1.3e-07]
[1766194745731,0.02802347,88157.0,88149.0,1.3e-07]
[1766194745926,0.0113502,88153.0,88149.0,1.3e-07]
[1766194753641,0.01135,88154.0,88149.0,1.3e-07]
[1766194756240,0.0113504,88151.0,88149.0,1.3e-07]
[1766194762148,0.0113499,88155.0,88149.0,1.3e-07]
[1766194762345,0.02801633,88154.0,88149.0,1.3e-07]
[1766194762539,0.0113499,88155.0,88149.0,1.3e-07]
[1766194762734,0.0280169,88154.0,88149.0,1.3e-07]
[1766194762942,0.0113499,88155.0,88149.0,1.3e-07]
[1766194763142,0.0280169,88154.0,88149.0,1.3e-07]
[1766194763350,0.0113499,88155.0,88149.0,1.3e-07]
[1766194763650,0.02801793,88154.0,88149.0,1.3e-07]
[1766194763948,0.0113499,88155.0,88149.0,1.3e-07]
[1766194764153,0.02801793,88154.0,88149.0,1.3e-07]
[1766194764452,0.0113499,88155.0,88149.0,1.3e-07]
[1766194764751,0.02801923,88154.0,88149.0,1.3e-07]
[1766194765052,0.0113499,88155.0,88149.0,1.3e-07]
[1766194765235,0.02801923,88154.0,88149.0,1.3e-07]
[1766194765435,0.0113499,88155.0,88149.0,1.3e-07]
[1766194765635,0.02801974,88154.0,88149.0,1.3e-07]
[1766194765848,0.0113499,88155.0,88149.0,1.3e-07]
[1766194766048,0.02801974,88154.0,88149.0,1.3e-07]
[1766194766341,0.0113499,88155.0,88149.0,1.3e-07]
[1766194766539,0.02802025,88154.0,88149.0,1.3e-07]
[1766194766739,0.0113499,88155.0,88149.0,1.3e-07]
[1766194766951,0.02802025,88154.0,88149.0,1.3e-07]
[1766194767162,0.0113499,88155.0,88149.0,1.3e-07]
[1766194767446,0.0113501,88153.0,88149.0,1.3e-07]
[1766194773651,0.0113496,88157.0,88149.0,1.3e-07]
[1766194773851,0.02802121,88156.0,88149.0,1.3e-07]
[1766194774053,0.01135,88154.0,88149.0,1.3e-07]
[1766194774451,0.02802132,88153.0,88149.0,1.3e-07]
[1766194774753,0.02802132,88152.0,88149.0,1.3e-07]
[1766194774939,0.01135,88154.0,88149.0,1.3e-07]
[1766194775139,0.02802132,88153.0,88149.0,1.3e-07]
[1766194775354,0.02802132,88152.0,88149.0,1.3e-07]
[1766194775650,0.01135,88154.0,88149.0,1.3e-07]
[1766194775952,0.02802153,88153.0,88149.0,1.3e-07]
[1766194776151,0.02802153,88152.0,88149.0,1.3e-07]
[1766194776353,0.01135,88154.0,88149.0,1.3e-07]
[1766194776553,0.02802152,88153.0,88149.0,1.3e-07]
[1766194776754,0.02802152,88152.0,88149.0,1.3e-07]
[1766194776955,0.01135,88154.0,88149.0,1.3e-07]
[1766194777155,0.02802152,88153.0,88149.0,1.3e-07]
[1766194777356,0.02802152,88152.0,88149.0,1.3e-07]
[1766194777557,0.01135,88154.0,88149.0,1.3e-07]
[1766194777758,0.02802161,88153.0,88149.0,1.3e-07]
[1766194778055,0.02802161,88152.0,88149.0,1.3e-07]
[1766194778352,0.01135,88154.0,88149.0,1.3e-07]
[1766194778553,0.02802173,88153.0,88149.0,1.3e-07]
[1766194778753,0.02802173,88152.0,88149.0,1.3e-07]
[1766194778957,0.01135,88154.0,88149.0,1.3e-07]
[1766194779259,0.02802173,88153.0,88149.0,1.3e-07]
[1766194779557,0.02802173,88152.0,88149.0,1.3e-07]
[1766194779753,0.01135,88154.0,88149.0,1.3e-07]
[1766194779958,0.02802193,88153.0,88149.0,1.3e-07]
[1766194780154,0.02802193,88152.0,88149.0,1.3e-07]
[1766194780355,0.01135,88154.0,88149.0,1.3e-07]
[1766194780556,0.02802217,88153.0,88149.0,1.3e-07]
[1766194780759,0.02802217,88152.0,88149.0,1.3e-07]
[1766194780960,0.01135,88154.0,88149.0,1.3e-07]
[1766194781152,0.02802217,88153.0,88149.0,1.3e-07]
[1766194781352,0.02802217,88152.0,88149.0,1.3e-07]
[1766194781552,0.01135,88154.0,88149.0,1.3e-07]
[1766194781760,0.02802245,88153.0,88149.0,1.3e-07]
[1766194781958,0.02802245,88152.0,88149.0,1.3e-07]
[1766194782158,0.01135,88154.0,88149.0,1.3e-07]
[1766194782359,0.02802281,88153.0,88149.0,1.3e-07]
[1766194782560,0.02802281,88152.0,88149.0,1.3e-07]
[1766194782761,0.02802281,88151.0,88149.0,1.3e-07]
[1766194782950,0.01135,88154.0,88149.0,1.3e-07]
[1766194783151,0.02802295,88153.0,88149.0,1.3e-07]
[1766194783351,0.02802295,88152.0,88149.0,1.3e-07]
[1766194783658,0.02802295,88151.0,88149.0,1.3e-07]
[1766194783859,0.01135,88154.0,88149.0,1.3e-07]
[1766194784160,0.02802328,88153.0,88149.0,1.3e-07]
[1766194784459,0.01135,88154.0,88149.0,1.3e-07]
[1766194784662,0.02802334,88153.0,88149.0,1.3e-07]
[1766194784861,0.01135,88154.0,88149.0,1.3e-07]
[1766194785062,0.02802334,88153.0,88149.0,1.3e-07]
[1766194785361,0.0113502,88152.0,88149.0,1.3e-07]
[1766194789862,0.0113505,88150.0,88149.0,1.3e-07]
[1766194790664,0.01135,88154.0,88149.0,1.3e-07]
[1766194790864,0.02794074,88153.0,88149.0,1.3e-07]
[1766194791165,0.01135,88154.0,88149.0,1.3e-07]
[1766194791462,0.02794064,88153.0,88149.0,1.3e-07]
[1766194791663,0.01135,88154.0,88149.0,1.3e-07]
[1766194791968,0.02794064,88153.0,88149.0,1.3e-07]
[1766194792264,0.01135,88154.0,88149.0,1.3e-07]
[1766194792464,0.02794052,88153.0,88149.0,1.3e-07]
[1766194792658,0.01135,88154.0,88149.0,1.3e-07]
[1766194794159,0.02794022,88153.0,88149.0,1.3e-07]
[1766194794363,0.0113502,88152.0,88149.0,1.3e-07]
[1766194832181,0.0113498,88156.0,88149.0,1.3e-07]
[1766194832385,0.01135,88154.0,88149.0,1.3e-07]
[1766194832686,0.02800806,88153.0,88149.0,1.3e-07]
[1766194832986,0.01135,88154.0,88149.0,1.3e-07]
[1766194833185,0.02800744,88153.0,88149.0,1.3e-07]
[1766194833386,0.01135,88154.0,88149.0,1.3e-07]
[1766194833582,0.02800708,88153.0,88149.0,1.3e-07]
[1766194833779,0.01135,88154.0,88149.0,1.3e-07]
[1766194833986,0.02800708,88153.0,88149.0,1.3e-07]
[1766194834281,0.01135,88154.0,88149.0,1.3e-07]
[1766194834487,0.0113502,88152.0,88149.0,1.3e-07]
[1766194845298,0.00017013,88167.0,88149.0,1.3e-07]
[1766194845488,0.22674022,88160.0,88149.0,1.3e-07]
[1766194845795,0.02800706,88159.0,88149.0,1.3e-07]
[1766194845998,0.02800706,88158.0,88149.0,1.3e-07]
[1766194846296,0.01135,88154.0,88149.0,1.3e-07]
[1766194846497,0.02800706,88153.0,88149.0,1.3e-07]
[1766194846697,0.01135,88154.0,88149.0,1.3e-07]
[1766194846892,0.02800663,88153.0,88149.0,1.3e-07]
[1766194847092,0.01135,88154.0,88149.0,1.3e-07]
[1766194847296,0.02800682,88153.0,88149.0,1.3e-07]
[1766194847594,0.01135,88154.0,88149.0,1.3e-07]
[1766194847794,0.02800682,88153.0,88149.0,1.3e-07]
[1766194847997,0.01135,88154.0,88149.0,1.3e-07]
[1766194848184,0.02800731,88153.0,88149.0,1.3e-07]
[1766194848498,0.01135,88154.0,88149.0,1.3e-07]
[1766194848687,0.02800756,88153.0,88149.0,1.3e-07]
[1766194848895,0.01135,88154.0,88149.0,1.3e-07]
[1766194849093,0.02800756,88153.0,88149.0,1.3e-07]
[1766194849294,0.01135,88154.0,88149.0,1.3e-07]
[1766194849492,0.02800788,88153.0,88149.0,1.3e-07]
[1766194849690,0.01135,88154.0,88149.0,1.3e-07]
[1766194849990,0.02800788,88153.0,88149.0,1.3e-07]
[1766194850190,0.01135,88154.0,88149.0,1.3e-07]
[1766194850398,0.02800782,88153.0,88149.0,1.3e-07]
[1766194850699,0.01135,88154.0,88149.0,1.3e-07]
[1766194850898,0.02800781,88153.0,88149.0,1.3e-07]
[1766194851097,0.01135,88154.0,88149.0,1.3e-07]
[1766194851300,0.02800781,88153.0,88149.0,1.3e-07]
[1766194851499,0.01135,88154.0,88149.0,1.3e-07]
[1766194851701,0.02800781,88153.0,88149.0,1.3e-07]
[1766194851900,0.01135,88154.0,88149.0,1.3e-07]
[1766194852110,0.02800781,88153.0,88149.0,1.3e-07]
[1766194852302,0.01135,88154.0,88149.0,1.3e-07]
[1766194852504,0.02800776,88153.0,88149.0,1.3e-07]
[1766194852701,0.01135,88154.0,88149.0,1.3e-07]
[1766194852902,0.02800779,88153.0,88149.0,1.3e-07]
[1766194853103,0.01135,88154.0,88149.0,1.3e-07]
[1766194853310,0.0113502,88152.0,88149.0,1.3e-07]
[1766194854805,0.0113498,88156.0,88149.0,1.3e-07]
[1766194855007,0.02800764,88155.0,88149.0,1.3e-07]
[1766194855306,0.03935764,88154.0,88149.0,1.3e-07]
[1766194855504,0.02800764,88153.0,88149.0,1.3e-07]
[1766194860113,0.0113502,88152.0,88149.0,1.3e-07]
[1766194860919,0.0113505,88150.0,88149.0,1.3e-07]
[1766194861719,0.0113505,88150.0,88130.0,0.22672815]
[1766194861720,0.0113511,88146.0,88124.0,0.0113538]
[1766194861910,0.22672815,88140.0,88110.0,0.32833184]
[1766194862110,0.22672815,88140.0,88111.0,0.0113555]
[1766194862315,0.22672815,88140.0,88110.0,0.22672815]
[1766194862316,0.0113529,88132.0,88110.0,0.22672815]
[1766194862719,0.00017013,88130.0,88112.0,0.00017013]
[1766194862913,0.00017013,88130.0,88113.0,0.0113552]
[1766194863216,0.00017013,88130.0,88114.0,0.0113551]
[1766194865220,0.00017013,88130.0,88112.0,0.00017013]
[1766194865623,0.00017013,88130.0,88120.0,0.22672815]
[1766194867826,0.00017013,88130.0,88116.0,0.0113548]
[1766194873630,0.00017013,88130.0,88112.0,0.01152543]
[1766194874242,0.00017013,88130.0,88112.0,0.00017013]
[1766194876337,0.0113536,88126.0,88112.0,0.00017013]
[1766194879535,0.0113539,88124.0,88112.0,0.00017013]
[1766194880634,0.00017013,88130.0,88075.0,0.10160369]
[1766194880832,0.00017013,88130.0,88082.0,0.0113592]
[1766194880833,0.22683329,88122.0,88082.0,0.0113592]
[1766194881229,0.0113562,88106.0,88082.0,0.0113592]
[1766194881635,0.0113562,88106.0,88085.0,0.0113588]
[1766194881837,0.00017023,88103.0,88085.0,0.01152903]
[1766194882739,0.00017023,88103.0,88088.0,0.0113584]
[1766194889253,2.3e-07,88103.0,88091.0,0.011358]
[1766194892549,4.68e-06,88105.0,88091.0,0.011358]
[1766194895350,4.68e-06,88105.0,88094.0,0.0113577]
[1766194896745,4.68e-06,88105.0,88090.0,0.22683329]
[1766194896949,4.68e-06,88105.0,88091.0,0.0113581]
[1766194898250,4.68e-06,88105.0,88094.0,0.0113576]
[1766194898452,0.0113545,88119.0,88094.0,0.0113576]
[1766194899455,0.00017023,88115.0,88098.0,0.00017023]
[1766194901748,0.0113552,88114.0,88098.0,0.00017023]
[1766194911561,0.0113555,88111.0,88098.0,0.00017023]
[1766194914455,0.01152533,88115.0,88098.0,0.00017023]
[1766194917165,0.0113558,88109.0,88098.0,0.00017023]
[1766194921967,0.0113558,88109.0,88098.0,0.00013023]
[1766194922566,0.00017023,88115.0,88098.0,0.00013023]
[1766194922768,0.0113554,88113.0,88098.0,0.00013023]
[1766194923369,0.00017023,88115.0,88098.0,0.00013023]
[1766194923960,0.0113552,88114.0,88098.0,0.00013023]
[1766194925972,0.0113556,88111.0,88098.0,0.00013023]
[1766194930471,0.0113556,88111.0,88098.0,2.3e-07]
[1766194934284,0.0113559,88108.0,88098.0,2.3e-07]
[1766194935383,0.0113565,88104.0,88098.0,2.3e-07]
[1766194936081,0.011356,88108.0,88098.0,2.3e-07]
[1766194936786,0.0113564,88105.0,88098.0,2.3e-07]
[1766194937784,0.22696498,88110.0,88098.0,2.3e-07]
[1766194939189,0.0113558,88109.0,88098.0,2.3e-07]
[1766194943694,0.0113562,88106.0,88098.0,2.3e-07]
[1766194954002,0.22696498,88110.0,88098.0,2.3e-07]
[1766194954003,0.0113566,88103.0,88098.0,2.3e-07]
[1766194954408,0.0113563,88105.0,88098.0,2.3e-07]
[1766194966618,0.0113567,88102.0,88098.0,2.3e-07]
[1766194969524,0.22696498,88110.0,88098.0,2.3e-07]